[Event "Early-Titled-Tuesday-Blitz-September-26-2023"]
[Site "Chess.com"]
[Date "2023.09.26"]
[Round "6"]
[White "GeorgiosSouleidis"]
[Black "Incognito_Knight"]
[Result "0-1"]
[WhiteElo "2561"]
[BlackElo "2764"]
[TimeControl "180+1"]
[EndTime "9:08:08 PDT"]
[Termination "Incognito_Knight won on time"]

1. e4 {[%clk 0:03:00.9]} 1... c6 {[%clk 0:02:57.6]} 2. Nc3 {[%clk 0:03:00.7]}
2... d5 {[%clk 0:02:57.9]} 3. Nf3 {[%clk 0:03:01.2]} 3... dxe4 {[%clk
0:02:56.4]} 4. Nxe4 {[%clk 0:03:02.1]} 4... Nf6 {[%clk 0:02:56.6]} 5. Qe2 {[%clk
0:03:01.6]} 5... Nxe4 {[%clk 0:02:55.6]} 6. Qxe4 {[%clk 0:03:02.5]} 6... Qd5
{[%clk 0:02:55.8]} 7. Qh4 {[%clk 0:03:02.2]} 7... Qe6+ {[%clk 0:02:53.8]} 8. Be2
{[%clk 0:03:02.2]} 8... Qg6 {[%clk 0:02:54.1]} 9. O-O {[%clk 0:02:40.9]} 9...
Qxc2 {[%clk 0:02:53.3]} 10. Bc4 {[%clk 0:02:14.3]} 10... Qf5 {[%clk 0:02:52.2]}
11. h3 {[%clk 0:01:57.1]} 11... e6 {[%clk 0:02:45.2]} 12. d4 {[%clk 0:01:45.7]}
12... Nd7 {[%clk 0:02:37.1]} 13. Re1 {[%clk 0:01:43.2]} 13... Be7 {[%clk
0:02:26]} 14. Bg5 {[%clk 0:01:35.4]} 14... Bxg5 {[%clk 0:02:22]} 15. Nxg5 {[%clk
0:01:36.3]} 15... Nf6 {[%clk 0:01:56.8]} 16. Re5 {[%clk 0:01:22.8]} 16... Qg6
{[%clk 0:01:50.3]} 17. Rae1 {[%clk 0:01:16.8]} 17... h6 {[%clk 0:01:42.8]} 18.
Nxe6 {[%clk 0:00:24.4]} 18... fxe6 {[%clk 0:01:40.5]} 19. Bxe6 {[%clk
0:00:25.3]} 19... Bxe6 {[%clk 0:01:38.9]} 20. Rxe6+ {[%clk 0:00:26.2]} 20... Kf7
{[%clk 0:01:19.7]} 21. Re7+ {[%clk 0:00:26.4]} 21... Kg8 {[%clk 0:01:19.8]} 22.
R1e6 {[%clk 0:00:24.8]} 22... Rf8 {[%clk 0:01:13]} 23. Rxb7 {[%clk 0:00:21.8]}
23... Rf7 {[%clk 0:00:56.4]} 24. Rb8+ {[%clk 0:00:09]} 24... Kh7 {[%clk
0:00:55.5]} 25. Rxh8+ {[%clk 0:00:09.6]} 25... Kxh8 {[%clk 0:00:55.3]} 26. Rxc6
{[%clk 0:00:10.2]} 26... Qb1+ {[%clk 0:00:51]} 27. Kh2 {[%clk 0:00:10.2]} 27...
Qxb2 {[%clk 0:00:49.6]} 28. Qf4 {[%clk 0:00:05.8]} 28... Qb7 {[%clk 0:00:43.8]}
29. Re6 {[%clk 0:00:01.4]} 29... Qd5 {[%clk 0:00:38.1]} 30. Qe5 {[%clk
0:00:01.3]} 30... Qxa2 {[%clk 0:00:28]} 31. f3 {[%clk 0:00:01.7]} 31... Qd5
{[%clk 0:00:21.3]} 0-1

[Event "Early-Titled-Tuesday-Blitz-September-26-2023"]
[Site "Chess.com"]
[Date "2023.09.26"]
[Round "6"]
[White "ArtemDyachuk"]
[Black "zajka-molotok"]
[Result "1-0"]
[WhiteElo "2695"]
[BlackElo "2536"]
[TimeControl "180+1"]
[EndTime "9:08:08 PDT"]
[Termination "ArtemDyachuk won on time"]

1. e4 {[%clk 0:03:00.9]} 1... c5 {[%clk 0:02:59.1]} 2. Nf3 {[%clk 0:03:00.1]}
2... Nc6 {[%clk 0:02:58.9]} 3. Bb5 {[%clk 0:02:59.7]} 3... g6 {[%clk 0:02:57.7]}
4. O-O {[%clk 0:02:58.5]} 4... Bg7 {[%clk 0:02:57.5]} 5. Bxc6 {[%clk 0:02:57.8]}
5... dxc6 {[%clk 0:02:55.8]} 6. h3 {[%clk 0:02:57.1]} 6... e5 {[%clk 0:02:52.2]}
7. d3 {[%clk 0:02:56.9]} 7... Ne7 {[%clk 0:02:47.9]} 8. a4 {[%clk 0:02:52.9]}
8... Be6 {[%clk 0:02:47]} 9. Be3 {[%clk 0:02:52.1]} 9... c4 {[%clk 0:02:45]} 10.
d4 {[%clk 0:02:46.2]} 10... O-O {[%clk 0:02:38.9]} 11. dxe5 {[%clk 0:02:42]}
11... Qc7 {[%clk 0:02:33.7]} 12. Bc5 {[%clk 0:02:40.2]} 12... Rfd8 {[%clk
0:02:21.3]} 13. Bd6 {[%clk 0:02:34.5]} 13... Qd7 {[%clk 0:02:19.2]} 14. Nc3
{[%clk 0:02:31.4]} 14... Nc8 {[%clk 0:02:16.1]} 15. Ba3 {[%clk 0:02:26]} 15...
Qc7 {[%clk 0:02:13.3]} 16. Qe2 {[%clk 0:02:24.4]} 16... Bxe5 {[%clk 0:02:10.7]}
17. Nxe5 {[%clk 0:02:23.5]} 17... Qxe5 {[%clk 0:02:11.6]} 18. Qe3 {[%clk
0:02:21.8]} 18... Nb6 {[%clk 0:01:57.3]} 19. f4 {[%clk 0:02:21.1]} 19... Qd4
{[%clk 0:01:54.7]} 20. Rae1 {[%clk 0:02:16.5]} 20... Qxe3+ {[%clk 0:01:50.6]}
21. Rxe3 {[%clk 0:02:17.4]} 21... Rd2 {[%clk 0:01:49.9]} 22. a5 {[%clk
0:02:15.4]} 22... Nd7 {[%clk 0:01:32.5]} 23. f5 {[%clk 0:02:14.2]} 23... gxf5
{[%clk 0:01:31.9]} 24. exf5 {[%clk 0:02:15.1]} 24... Bd5 {[%clk 0:01:31.9]} 25.
Rg3+ {[%clk 0:02:10.6]} 25... Kh8 {[%clk 0:01:31]} 26. Nxd5 {[%clk 0:01:34.2]}
26... cxd5 {[%clk 0:01:16.5]} 27. Bb4 {[%clk 0:01:20.8]} 27... Rxc2 {[%clk
0:01:15.6]} 28. Bc3+ {[%clk 0:01:18.8]} 28... f6 {[%clk 0:01:15.2]} 29. Re1
{[%clk 0:01:18.4]} 29... Rg8 {[%clk 0:01:03.1]} 30. Rxg8+ {[%clk 0:01:15.2]}
30... Kxg8 {[%clk 0:01:04]} 31. Re7 {[%clk 0:01:14.5]} 31... Ne5 {[%clk
0:00:24.7]} 32. Rxb7 {[%clk 0:01:12.6]} 32... a6 {[%clk 0:00:23.9]} 33. Rb6
{[%clk 0:01:12]} 33... Nd3 {[%clk 0:00:15.5]} 34. Rxa6 {[%clk 0:01:09.6]} 34...
Nf4 {[%clk 0:00:14.7]} 35. Ra8+ {[%clk 0:01:05.1]} 35... Kf7 {[%clk 0:00:14.2]}
36. a6 {[%clk 0:01:06]} 36... Rxg2+ {[%clk 0:00:13.4]} 37. Kf1 {[%clk 0:01:06]}
37... Rh2 {[%clk 0:00:08.9]} 38. a7 {[%clk 0:01:05.5]} 38... Rh1+ {[%clk
0:00:08.6]} 39. Kf2 {[%clk 0:01:04.1]} 39... Ra1 {[%clk 0:00:08.1]} 40. Bd4
{[%clk 0:01:04]} 40... Nd3+ {[%clk 0:00:04.9]} 41. Ke2 {[%clk 0:00:58.5]} 41...
Nc1+ {[%clk 0:00:03.8]} 42. Kf2 {[%clk 0:00:55.6]} 42... Nb3 {[%clk 0:00:02.8]}
43. Bb6 {[%clk 0:00:50.7]} 43... Ra6 {[%clk 0:00:01.5]} 44. Rb8 {[%clk
0:00:49.7]} 1-0

[Event "Early-Titled-Tuesday-Blitz-September-26-2023"]
[Site "Chess.com"]
[Date "2023.09.26"]
[Round "6"]
[White "Vesper2018"]
[Black "Rozhkov_V"]
[Result "1/2-1/2"]
[WhiteElo "2579"]
[BlackElo "2415"]
[TimeControl "180+1"]
[EndTime "9:08:16 PDT"]
[Termination "Game drawn by repetition"]

1. e4 {[%clk 0:03:00.9]} 1... e6 {[%clk 0:02:59.7]} 2. d4 {[%clk 0:03:00.7]}
2... d5 {[%clk 0:03:00]} 3. Nc3 {[%clk 0:03:00.5]} 3... Bb4 {[%clk 0:03:00.2]}
4. e5 {[%clk 0:03:00.4]} 4... c5 {[%clk 0:03:00.7]} 5. a3 {[%clk 0:03:00.8]}
5... Bxc3+ {[%clk 0:03:01.4]} 6. bxc3 {[%clk 0:03:01.2]} 6... Ne7 {[%clk
0:03:02.1]} 7. h4 {[%clk 0:03:01]} 7... Qc7 {[%clk 0:02:58.1]} 8. Rh3 {[%clk
0:02:57]} 8... Nbc6 {[%clk 0:02:46]} 9. Nf3 {[%clk 0:02:50.4]} 9... Bd7 {[%clk
0:02:43.5]} 10. h5 {[%clk 0:02:49.5]} 10... h6 {[%clk 0:02:43.1]} 11. a4 {[%clk
0:02:41.6]} 11... Qa5 {[%clk 0:02:37.7]} 12. Bd2 {[%clk 0:02:39.5]} 12... c4
{[%clk 0:02:38.2]} 13. Qb1 {[%clk 0:02:36.9]} 13... O-O-O {[%clk 0:02:33.7]} 14.
Qb5 {[%clk 0:02:08.4]} 14... Qc7 {[%clk 0:02:32.3]} 15. Qb2 {[%clk 0:02:06.7]}
15... Nf5 {[%clk 0:02:26.4]} 16. g4 {[%clk 0:01:52.3]} 16... Nfe7 {[%clk
0:02:26.2]} 17. Ng1 {[%clk 0:01:42.8]} 17... f6 {[%clk 0:02:23.3]} 18. f4 {[%clk
0:01:39.6]} 18... fxe5 {[%clk 0:02:20.7]} 19. fxe5 {[%clk 0:01:34.6]} 19... g6
{[%clk 0:02:17.7]} 20. Ne2 {[%clk 0:01:28.9]} 20... Rdf8 {[%clk 0:02:12.5]} 21.
hxg6 {[%clk 0:01:18.9]} 21... Nxg6 {[%clk 0:02:12.2]} 22. Rxh6 {[%clk
0:01:15.5]} 22... Qd8 {[%clk 0:01:55.9]} 23. O-O-O {[%clk 0:01:08.7]} 23... Rxh6
{[%clk 0:01:39.8]} 24. Bxh6 {[%clk 0:01:07.6]} 24... Rf2 {[%clk 0:01:40.6]} 25.
Qa3 {[%clk 0:00:58.6]} 25... Qh4 {[%clk 0:01:29.7]} 26. Be3 {[%clk 0:00:56.4]}
26... Rh2 {[%clk 0:01:22.1]} 27. Nf4 {[%clk 0:00:50.4]} 27... Qxg4 {[%clk
0:01:07.1]} 28. Nxg6 {[%clk 0:00:43.4]} 28... Qxg6 {[%clk 0:01:08]} 29. Qf8+
{[%clk 0:00:41.6]} 29... Nd8 {[%clk 0:01:05.2]} 30. Bf2 {[%clk 0:00:25.3]} 30...
Bxa4 {[%clk 0:00:57.1]} 31. Rd2 {[%clk 0:00:25.5]} 31... Rh1 {[%clk 0:00:47]}
32. Be1 {[%clk 0:00:25.5]} 32... Qe4 {[%clk 0:00:32.5]} 33. Re2 {[%clk
0:00:18.5]} 33... Qg6 {[%clk 0:00:24.9]} 34. Kb2 {[%clk 0:00:18.5]} 34... a6
{[%clk 0:00:19.6]} 35. Rg2 {[%clk 0:00:18]} 35... Qe4 {[%clk 0:00:18.7]} 36. Re2
{[%clk 0:00:15.6]} 36... Qg6 {[%clk 0:00:18.8]} 37. Rg2 {[%clk 0:00:15.7]} 37...
Qe4 {[%clk 0:00:17.7]} 38. Re2 {[%clk 0:00:16]} 38... Qg6 {[%clk 0:00:18.4]}
1/2-1/2

[Event "Early-Titled-Tuesday-Blitz-September-26-2023"]
[Site "Chess.com"]
[Date "2023.09.26"]
[Round "6"]
[White "jk13"]
[Black "cristiano78"]
[Result "1-0"]
[WhiteElo "2619"]
[BlackElo "2261"]
[TimeControl "180+1"]
[EndTime "9:08:17 PDT"]
[Termination "jk13 won on time"]

1. e4 {[%clk 0:02:58.5]} 1... c5 {[%clk 0:02:55.7]} 2. c3 {[%clk 0:02:58.7]}
2... d6 {[%clk 0:02:48]} 3. d4 {[%clk 0:02:58.2]} 3... Nf6 {[%clk 0:02:46.9]} 4.
Bd3 {[%clk 0:02:58.1]} 4... Qc7 {[%clk 0:02:46.4]} 5. Nf3 {[%clk 0:02:58.5]}
5... Bg4 {[%clk 0:02:45.6]} 6. O-O {[%clk 0:02:57.3]} 6... Nbd7 {[%clk
0:02:45.4]} 7. Re1 {[%clk 0:02:53.2]} 7... e5 {[%clk 0:02:41.3]} 8. Nbd2 {[%clk
0:02:36.1]} 8... a6 {[%clk 0:02:39.1]} 9. h3 {[%clk 0:02:35]} 9... Bh5 {[%clk
0:02:37.6]} 10. a4 {[%clk 0:02:33.9]} 10... Be7 {[%clk 0:02:35.5]} 11. dxe5
{[%clk 0:02:19.8]} 11... Nxe5 {[%clk 0:02:31.7]} 12. Be2 {[%clk 0:02:20.4]}
12... Bg6 {[%clk 0:02:29.3]} 13. Nxe5 {[%clk 0:02:18.5]} 13... dxe5 {[%clk
0:02:28.6]} 14. Bc4 {[%clk 0:02:10.5]} 14... Rd8 {[%clk 0:02:24.4]} 15. Qf3
{[%clk 0:02:09.2]} 15... O-O {[%clk 0:02:23.6]} 16. Nf1 {[%clk 0:02:06.9]} 16...
Qc6 {[%clk 0:02:14.1]} 17. Bg5 {[%clk 0:01:45.8]} 17... b5 {[%clk 0:01:55]} 18.
axb5 {[%clk 0:01:46.7]} 18... axb5 {[%clk 0:01:55]} 19. Bxf6 {[%clk 0:01:46.9]}
19... Bxf6 {[%clk 0:01:53.6]} 20. Bd5 {[%clk 0:01:46.9]} 20... Qb6 {[%clk
0:01:41.3]} 21. Ra2 {[%clk 0:01:41.7]} 21... Rd6 {[%clk 0:01:26.9]} 22. Rea1
{[%clk 0:01:42]} 22... h6 {[%clk 0:01:24.3]} 23. Ra7 {[%clk 0:01:36.7]} 23...
Kh7 {[%clk 0:01:20.1]} 24. Rb7 {[%clk 0:01:35.1]} 24... Qd8 {[%clk 0:01:18.6]}
25. Rxb5 {[%clk 0:01:35.2]} 25... Rxd5 {[%clk 0:01:16.1]} 26. exd5 {[%clk
0:01:34.8]} 26... e4 {[%clk 0:01:16.7]} 27. Qd1 {[%clk 0:01:31.8]} 27... Qd6
{[%clk 0:01:15]} 28. Ne3 {[%clk 0:01:25]} 28... Rd8 {[%clk 0:00:58.4]} 29. Raa5
{[%clk 0:01:22.1]} 29... Be7 {[%clk 0:00:51.2]} 30. Ra7 {[%clk 0:01:19.9]} 30...
Qe5 {[%clk 0:00:41.7]} 31. Nc4 {[%clk 0:01:09.2]} 31... Qg5 {[%clk 0:00:40.7]}
32. d6 {[%clk 0:00:40]} 32... Bf5 {[%clk 0:00:19.4]} 33. Rxc5 {[%clk 0:00:38.3]}
33... Qf4 {[%clk 0:00:12.1]} 34. g3 {[%clk 0:00:31]} 34... Qg5 {[%clk
0:00:05.6]} 35. Ne3 {[%clk 0:00:28.4]} 35... g6 {[%clk 0:00:05.2]} 36. Rxe7
{[%clk 0:00:23.9]} 1-0

[Event "Early-Titled-Tuesday-Blitz-September-26-2023"]
[Site "Chess.com"]
[Date "2023.09.26"]
[Round "6"]
[White "Hilary46"]
[Black "DonkyDonkyDonkey"]
[Result "0-1"]
[WhiteElo "2586"]
[BlackElo "2744"]
[TimeControl "180+1"]
[EndTime "9:08:18 PDT"]
[Termination "DonkyDonkyDonkey won on time"]

1. e4 {[%clk 0:02:52]} 1... c5 {[%clk 0:02:59.2]} 2. Nf3 {[%clk 0:02:52.1]} 2...
d6 {[%clk 0:02:59.6]} 3. d4 {[%clk 0:02:52.8]} 3... cxd4 {[%clk 0:03:00.5]} 4.
Nxd4 {[%clk 0:02:53.2]} 4... Nf6 {[%clk 0:03:01.2]} 5. Nc3 {[%clk 0:02:53.8]}
5... a6 {[%clk 0:03:01.9]} 6. Bg5 {[%clk 0:02:54.3]} 6... e6 {[%clk 0:03:02.1]}
7. f4 {[%clk 0:02:55]} 7... Be7 {[%clk 0:03:02.7]} 8. Qf3 {[%clk 0:02:55.5]}
8... Qc7 {[%clk 0:03:03.3]} 9. O-O-O {[%clk 0:02:56]} 9... Nbd7 {[%clk
0:03:03.8]} 10. Bd3 {[%clk 0:02:55.7]} 10... b5 {[%clk 0:02:58.5]} 11. Rhe1
{[%clk 0:02:55]} 11... Bb7 {[%clk 0:02:57.9]} 12. Qg3 {[%clk 0:02:55.6]} 12...
Nc5 {[%clk 0:02:55.1]} 13. Bxf6 {[%clk 0:02:49.1]} 13... gxf6 {[%clk 0:02:47.7]}
14. Qg7 {[%clk 0:02:45.2]} 14... Rf8 {[%clk 0:02:26.3]} 15. e5 {[%clk
0:02:36.3]} 15... dxe5 {[%clk 0:02:05]} 16. fxe5 {[%clk 0:02:37.2]} 16... O-O-O
{[%clk 0:02:00.3]} 17. exf6 {[%clk 0:02:24.2]} 17... Bd6 {[%clk 0:01:59.1]} 18.
Bxh7 {[%clk 0:02:13.3]} 18... Be5 {[%clk 0:01:36.7]} 19. Nb3 {[%clk 0:01:12.8]}
19... Na4 {[%clk 0:00:46.1]} 20. Rxd8+ {[%clk 0:00:43.6]} 20... Rxd8 {[%clk
0:00:45.5]} 21. Nxa4 {[%clk 0:00:18.9]} 21... bxa4 {[%clk 0:00:46.4]} 22. Kb1
{[%clk 0:00:09]} 22... axb3 {[%clk 0:00:42.2]} 23. axb3 {[%clk 0:00:08.8]} 23...
Qa5 {[%clk 0:00:22.7]} 24. Rc1 {[%clk 0:00:03.1]} 24... Bf4 {[%clk 0:00:19.7]}
25. Rf1 {[%clk 0:00:02.7]} 25... Qc7 {[%clk 0:00:18.4]} 26. Bd3 {[%clk
0:00:01.9]} 26... Be5 {[%clk 0:00:18.8]} 27. Qg5 {[%clk 0:00:01.8]} 27... Qd6
{[%clk 0:00:18.6]} 28. Re1 {[%clk 0:00:01.8]} 28... Bd4 {[%clk 0:00:18.6]} 29.
Rd1 {[%clk 0:00:01.6]} 29... Kb8 {[%clk 0:00:18.8]} 30. h4 {[%clk 0:00:01.9]}
30... Qb6 {[%clk 0:00:17.9]} 31. h5 {[%clk 0:00:01.8]} 31... Be3 {[%clk
0:00:18.1]} 32. Qe5+ {[%clk 0:00:01.9]} 32... Ka7 {[%clk 0:00:18.2]} 33. g4
{[%clk 0:00:01.8]} 33... Rd5 {[%clk 0:00:17.5]} 0-1

[Event "Early-Titled-Tuesday-Blitz-September-26-2023"]
[Site "Chess.com"]
[Date "2023.09.26"]
[Round "6"]
[White "Crazy_girl99"]
[Black "AttilaTurzo"]
[Result "1-0"]
[WhiteElo "2721"]
[BlackElo "2473"]
[TimeControl "180+1"]
[EndTime "9:08:18 PDT"]
[Termination "Crazy_girl99 won on time"]

1. e4 {[%clk 0:03:00.9]} 1... c5 {[%clk 0:02:57.8]} 2. Nf3 {[%clk 0:02:56.3]}
2... Nc6 {[%clk 0:02:55.9]} 3. Bc4 {[%clk 0:02:56.4]} 3... g6 {[%clk 0:02:50.5]}
4. d4 {[%clk 0:02:55.5]} 4... cxd4 {[%clk 0:02:50.5]} 5. Nxd4 {[%clk 0:02:56.4]}
5... Bg7 {[%clk 0:02:50.4]} 6. Be3 {[%clk 0:02:56.7]} 6... Nf6 {[%clk
0:02:48.5]} 7. Nc3 {[%clk 0:02:56.9]} 7... O-O {[%clk 0:02:46.1]} 8. O-O {[%clk
0:02:55.8]} 8... Nxe4 {[%clk 0:02:38]} 9. Nxe4 {[%clk 0:02:48.7]} 9... d5 {[%clk
0:02:37.6]} 10. Nxc6 {[%clk 0:02:48.7]} 10... bxc6 {[%clk 0:02:36.9]} 11. Bd3
{[%clk 0:02:49]} 11... dxe4 {[%clk 0:02:36]} 12. Bxe4 {[%clk 0:02:49.9]} 12...
Bxb2 {[%clk 0:02:18]} 13. Rb1 {[%clk 0:02:49.4]} 13... Be5 {[%clk 0:02:05.3]}
14. Bxc6 {[%clk 0:02:36.9]} 14... Ba6 {[%clk 0:02:03.2]} 15. Bxa8 {[%clk
0:02:28.2]} 15... Bxf1 {[%clk 0:02:02.4]} 16. Bd5 {[%clk 0:02:28.7]} 16... Ba6
{[%clk 0:01:31.3]} 17. Qf3 {[%clk 0:02:26.2]} 17... e6 {[%clk 0:01:27]} 18. Bb3
{[%clk 0:02:21.9]} 18... Qc7 {[%clk 0:01:19.7]} 19. h4 {[%clk 0:02:11.9]} 19...
Bb7 {[%clk 0:01:15.4]} 20. Qg4 {[%clk 0:02:07.1]} 20... a5 {[%clk 0:01:02.7]}
21. h5 {[%clk 0:01:54.3]} 21... Bg7 {[%clk 0:00:54.9]} 22. hxg6 {[%clk
0:01:52.5]} 22... hxg6 {[%clk 0:00:54.5]} 23. Rd1 {[%clk 0:01:42.1]} 23... Rd8
{[%clk 0:00:51.3]} 24. Re1 {[%clk 0:01:27.4]} 24... Bd5 {[%clk 0:00:46.7]} 25.
c4 {[%clk 0:01:24.4]} 25... Bc6 {[%clk 0:00:45.8]} 26. Bf4 {[%clk 0:01:16.7]}
26... e5 {[%clk 0:00:42.9]} 27. Bg5 {[%clk 0:01:12.8]} 27... Rd4 {[%clk
0:00:41.4]} 28. Qg3 {[%clk 0:01:07.7]} 28... a4 {[%clk 0:00:40]} 29. Be3 {[%clk
0:00:57.7]} 29... axb3 {[%clk 0:00:36.4]} 30. Bxd4 {[%clk 0:00:57.4]} 30... bxa2
{[%clk 0:00:30.1]} 31. Ba1 {[%clk 0:00:56.5]} 31... Qa5 {[%clk 0:00:26.3]} 32.
Qc3 {[%clk 0:00:53.5]} 32... Qb6 {[%clk 0:00:17.3]} 33. c5 {[%clk 0:00:39.8]}
33... Qb1 {[%clk 0:00:16.6]} 34. Kh2 {[%clk 0:00:32.4]} 34... Bd5 {[%clk
0:00:07.2]} 35. Qc1 {[%clk 0:00:15.8]} 1-0

[Event "Early-Titled-Tuesday-Blitz-September-26-2023"]
[Site "Chess.com"]
[Date "2023.09.26"]
[Round "6"]
[White "mapleaff"]
[Black "DarZay"]
[Result "1-0"]
[WhiteElo "2339"]
[BlackElo "2206"]
[TimeControl "180+1"]
[EndTime "9:08:22 PDT"]
[Termination "mapleaff won on time"]

1. e4 {[%clk 0:03:00.8]} 1... c5 {[%clk 0:02:56.9]} 2. Nf3 {[%clk 0:03:00.1]}
2... Nc6 {[%clk 0:02:56]} 3. d4 {[%clk 0:02:57]} 3... cxd4 {[%clk 0:02:55.6]} 4.
Nxd4 {[%clk 0:02:57.9]} 4... Nf6 {[%clk 0:02:53.8]} 5. Nc3 {[%clk 0:02:56.8]}
5... d6 {[%clk 0:02:53.8]} 6. Qd3 {[%clk 0:02:52.5]} 6... Bd7 {[%clk 0:02:50.7]}
7. Bg5 {[%clk 0:02:47.8]} 7... a6 {[%clk 0:02:50.3]} 8. O-O-O {[%clk 0:02:46.9]}
8... e6 {[%clk 0:02:49]} 9. Qg3 {[%clk 0:02:43]} 9... Be7 {[%clk 0:02:48]} 10.
Nxc6 {[%clk 0:02:35.7]} 10... bxc6 {[%clk 0:02:34.7]} 11. e5 {[%clk 0:02:22.1]}
11... dxe5 {[%clk 0:01:57.9]} 12. Qxe5 {[%clk 0:02:19]} 12... h6 {[%clk
0:01:47.9]} 13. Bh4 {[%clk 0:01:37.9]} 13... O-O {[%clk 0:01:45.7]} 14. Bd3
{[%clk 0:01:29.6]} 14... Ng4 {[%clk 0:01:31.2]} 15. Bxe7 {[%clk 0:01:22.7]}
15... Qxe7 {[%clk 0:01:28.1]} 16. Qg3 {[%clk 0:01:17.6]} 16... Nf6 {[%clk
0:01:02.5]} 17. Rhe1 {[%clk 0:01:05.7]} 17... Rab8 {[%clk 0:01:01.4]} 18. Bc4
{[%clk 0:00:59.2]} 18... Qb4 {[%clk 0:00:50.2]} 19. Bb3 {[%clk 0:00:59]} 19...
Nd5 {[%clk 0:00:49.9]} 20. Ne4 {[%clk 0:00:53.9]} 20... Kh8 {[%clk 0:00:41.3]}
21. Qd6 {[%clk 0:00:48.3]} 21... c5 {[%clk 0:00:26.8]} 22. Qxd7 {[%clk
0:00:40.4]} 22... c4 {[%clk 0:00:25.6]} 23. Nd6 {[%clk 0:00:38.9]} 23... cxb3
{[%clk 0:00:20]} 24. axb3 {[%clk 0:00:38.9]} 24... Qa5 {[%clk 0:00:11.3]} 25.
Nxf7+ {[%clk 0:00:34.5]} 25... Kg8 {[%clk 0:00:10.7]} 26. Nxh6+ {[%clk
0:00:18.8]} 26... gxh6 {[%clk 0:00:07.8]} 27. Qxe6+ {[%clk 0:00:18.8]} 27... Rf7
{[%clk 0:00:07.1]} 28. Rxd5 {[%clk 0:00:15.8]} 28... Qa1+ {[%clk 0:00:03.8]} 29.
Kd2 {[%clk 0:00:16]} 29... Qxb2 {[%clk 0:00:04]} 30. Rd3 {[%clk 0:00:11.1]}
30... Qg7 {[%clk 0:00:01.5]} 31. Rg3 {[%clk 0:00:11]} 1-0

[Event "Early-Titled-Tuesday-Blitz-September-26-2023"]
[Site "Chess.com"]
[Date "2023.09.26"]
[Round "6"]
[White "maracayo"]
[Black "CristianS27"]
[Result "1-0"]
[WhiteElo "2403"]
[BlackElo "2492"]
[TimeControl "180+1"]
[EndTime "9:08:23 PDT"]
[Termination "maracayo won on time"]

1. e4 {[%clk 0:03:00.9]} 1... e5 {[%clk 0:02:48.6]} 2. Nf3 {[%clk 0:03:00.2]}
2... Nc6 {[%clk 0:02:43.8]} 3. Be2 {[%clk 0:02:59.6]} 3... Nf6 {[%clk
0:02:41.8]} 4. d3 {[%clk 0:02:59.3]} 4... Bc5 {[%clk 0:02:36.2]} 5. O-O {[%clk
0:02:58.4]} 5... O-O {[%clk 0:02:20.2]} 6. Nbd2 {[%clk 0:02:57.5]} 6... d5
{[%clk 0:02:19.3]} 7. c3 {[%clk 0:02:57]} 7... a5 {[%clk 0:02:19]} 8. h3 {[%clk
0:02:56.3]} 8... Qe7 {[%clk 0:02:17.3]} 9. exd5 {[%clk 0:02:52.7]} 9... Nxd5
{[%clk 0:02:18.2]} 10. Re1 {[%clk 0:02:52.7]} 10... a4 {[%clk 0:02:08.1]} 11.
Bf1 {[%clk 0:02:47.5]} 11... a3 {[%clk 0:02:01.9]} 12. d4 {[%clk 0:02:46]} 12...
axb2 {[%clk 0:01:52]} 13. Bxb2 {[%clk 0:02:43.2]} 13... Ba3 {[%clk 0:01:50.5]}
14. Bxa3 {[%clk 0:02:28]} 14... Qxa3 {[%clk 0:01:50.7]} 15. Nc4 {[%clk
0:02:08.3]} 15... Nxc3 {[%clk 0:01:37.6]} 16. Qc2 {[%clk 0:01:51.8]} 16... Qb4
{[%clk 0:01:14.2]} 17. a3 {[%clk 0:01:44.6]} 17... Qa4 {[%clk 0:00:48.5]} 18.
Qxc3 {[%clk 0:01:42.3]} 18... exd4 {[%clk 0:00:49.4]} 19. Qd3 {[%clk 0:01:00]}
19... g6 {[%clk 0:00:36.4]} 20. Nfe5 {[%clk 0:00:50]} 20... Bf5 {[%clk 0:00:35]}
21. Qg3 {[%clk 0:00:46.9]} 21... Nxe5 {[%clk 0:00:31.8]} 22. Rxe5 {[%clk
0:00:42.3]} 22... Qc2 {[%clk 0:00:20.2]} 23. Qf4 {[%clk 0:00:21.4]} 23... Be6
{[%clk 0:00:15.8]} 24. Rc1 {[%clk 0:00:20.4]} 24... Qb3 {[%clk 0:00:12.7]} 25.
Qxd4 {[%clk 0:00:18.7]} 25... Rfd8 {[%clk 0:00:10.9]} 26. Qc3 {[%clk 0:00:18.3]}
26... Qa2 {[%clk 0:00:05.8]} 27. Rxe6 {[%clk 0:00:17.9]} 27... fxe6 {[%clk
0:00:04.7]} 28. Qf6 {[%clk 0:00:17.5]} 28... Re8 {[%clk 0:00:01.1]} 29. Ne5
{[%clk 0:00:17.2]} 29... Rf8 {[%clk 0:00:01.5]} 30. Qh4 {[%clk 0:00:14]} 30...
Qxa3 {[%clk 0:00:01.3]} 31. Rxc7 {[%clk 0:00:13]} 31... h5 {[%clk 0:00:01.5]}
32. Qg5 {[%clk 0:00:12]} 1-0